[Event "Titled Tuesday Blitz May 24 Late 2022"]
[White "Petrova, Irina"]
[Black "Araujo Sanchez, Josue"]
[WhiteFideId "14124122"]
[BlackFideId "6416896"]
[WhiteElo "1993"]
[BlackElo "2339"]
[Result "0-1"]
[Round "02"]
[TimeControl "180+1"]
[Date "2022.05.25"]
[WhiteClock "0:00:10"]
[BlackClock "0:01:50"]

1. e4 {[%clk 0:03:00]}  c5 {[%clk 0:02:59]} 2. Nf3 {[%clk 0:03:00]}  d6 {[%clk 0:02:58]} 3. Bb5+ {[%clk 0:03:00]}  Nd7 {[%clk 0:02:57]} 4. O-O {[%clk 0:02:59]}  Nf6 {[%clk 0:02:57]} 5. Re1 {[%clk 0:02:59]}  a6 {[%clk 0:02:58]} 6. Bf1 {[%clk 0:02:59]}  e5 {[%clk 0:02:56]} 7. c3 {[%clk 0:02:58]}  Be7 {[%clk 0:02:56]} 8. d4 {[%clk 0:02:59]}  O-O {[%clk 0:02:57]} 9. a4 {[%clk 0:02:59]}  b6 {[%clk 0:02:57]} 10. d5 {[%clk 0:02:57]}  Re8 {[%clk 0:02:56]} 11. c4 {[%clk 0:02:56]}  Nf8 {[%clk 0:02:52]} 12. h3 {[%clk 0:02:55]}  Ng6 {[%clk 0:02:52]} 13. Nc3 {[%clk 0:02:54]}  Bf8 {[%clk 0:02:49]} 14. Qc2 {[%clk 0:02:38]}  Nh5 {[%clk 0:02:47]} 15. Ne2 {[%clk 0:02:33]}  h6 {[%clk 0:02:45]} 16. Ng3 {[%clk 0:02:26]}  Nhf4 {[%clk 0:02:41]} 17. Bd2 {[%clk 0:02:16]}  Qf6 {[%clk 0:02:38]} 18. Nh2 {[%clk 0:02:11]}  Nh4 {[%clk 0:02:35]} 19. a5 {[%clk 0:01:56]}  Rb8 {[%clk 0:02:35]} 20. axb6 {[%clk 0:01:53]}  Rxb6 {[%clk 0:02:36]} 21. b4 {[%clk 0:01:34]}  cxb4 {[%clk 0:02:34]} 22. Qa4 {[%clk 0:01:34]}  Rd8 {[%clk 0:02:12]} 23. Bxb4 {[%clk 0:01:33]}  Rb8 {[%clk 0:02:13]} 24. Ba5 {[%clk 0:01:28]}  Bd7 {[%clk 0:02:12]} 25. Qa3 {[%clk 0:01:28]}  Rdc8 {[%clk 0:02:12]} 26. Bb4 {[%clk 0:01:08]}  h5 {[%clk 0:02:10]} 27. c5 {[%clk 0:01:04]}  dxc5 {[%clk 0:02:06]} 28. Bc3 {[%clk 0:01:01]}  Bb5 {[%clk 0:02:05]} 29. Bxb5 {[%clk 0:00:49]}  axb5 {[%clk 0:02:05]} 30. Qb2 {[%clk 0:00:49]}  Bd6 {[%clk 0:02:04]} 31. Ra6 {[%clk 0:00:44]}  g6 {[%clk 0:02:01]} 32. Rxd6 {[%clk 0:00:43]}  Qxd6 {[%clk 0:02:01]} 33. Bxe5 {[%clk 0:00:43]}  Nd3 {[%clk 0:01:56]} 34. Bxd6 {[%clk 0:00:37]}  Nxb2 {[%clk 0:01:56]} 35. Bxb8 {[%clk 0:00:37]}  Rxb8 {[%clk 0:01:55]} 36. e5 {[%clk 0:00:27]}  c4 {[%clk 0:01:54]} 37. d6 {[%clk 0:00:24]}  Nd3 {[%clk 0:01:54]} 38. Re3 {[%clk 0:00:20]}  b4 {[%clk 0:01:53]} 39. Ne4 {[%clk 0:00:19]}  Nf5 {[%clk 0:01:51]} 40. Nf6+ {[%clk 0:00:15]}  Kg7 {[%clk 0:01:51]} 41. Re4 {[%clk 0:00:14]}  c3 {[%clk 0:01:51]} 42. Nd5 {[%clk 0:00:10]}  c2 {[%clk 0:01:50]} 0-1


[Site "https://www.chess.com"]

[Event "Titled Tuesday Blitz May 24 Late 2022"]
[White "Prieto Aranguren, Alain"]
[Black "Lehtosaari, Mauri"]
[WhiteFideId "2268906"]
[BlackFideId "501999"]
[WhiteElo "2235"]
[BlackElo "2501"]
[Result "1-0"]
[Round "02"]
[TimeControl "180+1"]
[Date "2022.05.25"]
[WhiteClock "0:00:22"]
[BlackClock "0:00:14"]

1. d4 {[%clk 0:02:59]}  d5 {[%clk 0:02:56]} 2. c4 {[%clk 0:02:58]}  c6 {[%clk 0:02:56]} 3. Nf3 {[%clk 0:02:58]}  Nf6 {[%clk 0:02:56]} 4. Nc3 {[%clk 0:02:59]}  dxc4 {[%clk 0:02:55]} 5. a4 {[%clk 0:02:57]}  Bf5 {[%clk 0:02:55]} 6. e3 {[%clk 0:02:57]}  e6 {[%clk 0:02:55]} 7. Bxc4 {[%clk 0:02:57]}  Bb4 {[%clk 0:02:55]} 8. O-O {[%clk 0:02:57]}  O-O {[%clk 0:02:56]} 9. Qe2 {[%clk 0:02:54]}  Bg6 {[%clk 0:02:56]} 10. Ne5 {[%clk 0:02:53]}  Nbd7 {[%clk 0:02:56]} 11. Nxg6 {[%clk 0:02:53]}  hxg6 {[%clk 0:02:57]} 12. e4 {[%clk 0:02:51]}  e5 {[%clk 0:02:47]} 13. d5 {[%clk 0:02:49]}  Qa5 {[%clk 0:02:14]} 14. Bd2 {[%clk 0:02:47]}  Rac8 {[%clk 0:02:14]} 15. Bb3 {[%clk 0:02:40]}  Nc5 {[%clk 0:02:00]} 16. Bc2 {[%clk 0:02:39]}  Rfd8 {[%clk 0:01:34]} 17. dxc6 {[%clk 0:02:38]}  bxc6 {[%clk 0:01:31]} 18. Rfd1 {[%clk 0:02:33]}  Ne6 {[%clk 0:01:29]} 19. Be3 {[%clk 0:02:22]}  Nd4 {[%clk 0:01:20]} 20. Bxd4 {[%clk 0:02:10]}  exd4 {[%clk 0:01:21]} 21. Na2 {[%clk 0:02:06]}  Bd6 {[%clk 0:01:12]} 22. g3 {[%clk 0:01:55]}  Bc5 {[%clk 0:00:46]} 23. Qc4 {[%clk 0:01:52]}  Bb6 {[%clk 0:00:39]} 24. Bb3 {[%clk 0:01:38]}  Rd7 {[%clk 0:00:37]} 25. Nb4 {[%clk 0:01:35]}  Qc5 {[%clk 0:00:30]} 26. Qxc5 {[%clk 0:01:32]}  Bxc5 {[%clk 0:00:31]} 27. Nd3 {[%clk 0:01:28]}  Bf8 {[%clk 0:00:30]} 28. f3 {[%clk 0:01:22]}  c5 {[%clk 0:00:28]} 29. Bc4 {[%clk 0:01:22]}  Rb8 {[%clk 0:00:28]} 30. b3 {[%clk 0:01:21]}  Rc7 {[%clk 0:00:27]} 31. Rac1 {[%clk 0:01:20]}  Nd7 {[%clk 0:00:28]} 32. Kf2 {[%clk 0:01:18]}  Nb6 {[%clk 0:00:28]} 33. Rb1 {[%clk 0:01:11]}  Rcb7 {[%clk 0:00:25]} 34. Ba6 {[%clk 0:01:08]}  Rc7 {[%clk 0:00:25]} 35. Rdc1 {[%clk 0:01:06]}  g5 {[%clk 0:00:23]} 36. Ke2 {[%clk 0:01:05]}  g6 {[%clk 0:00:23]} 37. Ne5 {[%clk 0:01:01]}  Kg7 {[%clk 0:00:24]} 38. Nc4 {[%clk 0:00:59]}  Nxc4 {[%clk 0:00:23]} 39. Bxc4 {[%clk 0:00:59]}  Bd6 {[%clk 0:00:23]} 40. Kd3 {[%clk 0:00:58]}  a5 {[%clk 0:00:23]} 41. Bb5 {[%clk 0:00:57]}  Rh8 {[%clk 0:00:23]} 42. Rc2 {[%clk 0:00:56]}  Re7 {[%clk 0:00:21]} 43. Kc4 {[%clk 0:00:55]}  Re5 {[%clk 0:00:20]} 44. Bc6 {[%clk 0:00:53]}  f5 {[%clk 0:00:20]} 45. Bd5 {[%clk 0:00:51]}  g4 {[%clk 0:00:20]} 46. fxg4 {[%clk 0:00:51]}  fxe4 {[%clk 0:00:20]} 47. Rf2 {[%clk 0:00:46]}  Re7 {[%clk 0:00:18]} 48. Rbf1 {[%clk 0:00:46]}  e3 {[%clk 0:00:17]} 49. Rf7+ {[%clk 0:00:45]}  Rxf7 {[%clk 0:00:17]} 50. Rxf7+ {[%clk 0:00:45]}  Kh6 {[%clk 0:00:17]} 51. Kd3 {[%clk 0:00:37]}  Rd8 {[%clk 0:00:15]} 52. Ke2 {[%clk 0:00:35]}  Rb8 {[%clk 0:00:14]} 53. Kf3 {[%clk 0:00:35]}  Rf8 {[%clk 0:00:14]} 54. Rxf8 {[%clk 0:00:35]}  Bxf8 {[%clk 0:00:15]} 55. h4 {[%clk 0:00:35]}  g5 {[%clk 0:00:15]} 56. h5 {[%clk 0:00:33]}  Bd6 {[%clk 0:00:16]} 57. Bc4 {[%clk 0:00:33]}  Kg7 {[%clk 0:00:15]} 58. Bd3 {[%clk 0:00:32]}  Bf8 {[%clk 0:00:15]} 59. Ke4 {[%clk 0:00:31]}  Kf6 {[%clk 0:00:15]} 60. Kd5 {[%clk 0:00:31]}  Kf7 {[%clk 0:00:14]} 61. Kc6 {[%clk 0:00:30]}  Ke6 {[%clk 0:00:14]} 62. Kb6 {[%clk 0:00:30]}  Ke5 {[%clk 0:00:13]} 63. Kxa5 {[%clk 0:00:30]}  e2 {[%clk 0:00:13]} 64. Bxe2 {[%clk 0:00:30]}  Ke4 {[%clk 0:00:14]} 65. Kb5 {[%clk 0:00:28]}  Ke3 {[%clk 0:00:14]} 66. Bc4 {[%clk 0:00:23]}  d3 {[%clk 0:00:12]} 67. Bxd3 {[%clk 0:00:23]}  Kxd3 {[%clk 0:00:13]} 68. a5 {[%clk 0:00:23]}  Kc3 {[%clk 0:00:14]} 69. a6 {[%clk 0:00:23]}  Kxb3 {[%clk 0:00:13]} 70. a7 {[%clk 0:00:23]}  c4 {[%clk 0:00:14]} 71. a8=Q {[%clk 0:00:23]}  Bd6 {[%clk 0:00:14]} 72. Qd5 {[%clk 0:00:22]}  Bxg3 {[%clk 0:00:14]} 73. Qxc4+ {[%clk 0:00:22]}  Kb2 {[%clk 0:00:14]} 74. Qe2+ {[%clk 0:00:22]}  Ka1 {[%clk 0:00:13]} 75. Qf1+ {[%clk 0:00:22]}  Be1 {[%clk 0:00:13]} 76. Qxe1+ {[%clk 0:00:22]}  Kb2 {[%clk 0:00:14]} 77. Qe3 {[%clk 0:00:22]} 1-0


[Site "https://www.chess.com"]

[Event "Titled Tuesday Blitz May 24 Late 2022"]
[White "Remolar Gallen, Jose"]
[Black "Shirov, Alexei"]
[WhiteFideId "2215187"]
[BlackFideId "2209390"]
[WhiteElo "2205"]
[BlackElo "2678"]
[Result "0-1"]
[Round "02"]
[TimeControl "180+1"]
[Date "2022.05.25"]
[WhiteClock "0:00:02"]
[BlackClock "0:01:06"]

1. d4 {[%clk 0:03:00]}  d5 {[%clk 0:02:58]} 2. c4 {[%clk 0:03:01]}  c6 {[%clk 0:02:58]} 3. Nc3 {[%clk 0:03:01]}  Nf6 {[%clk 0:02:58]} 4. Nf3 {[%clk 0:03:01]}  e6 {[%clk 0:02:58]} 5. Bg5 {[%clk 0:03:00]}  h6 {[%clk 0:02:57]} 6. Bxf6 {[%clk 0:02:54]}  Qxf6 {[%clk 0:02:56]} 7. e3 {[%clk 0:02:53]}  g6 {[%clk 0:02:54]} 8. Be2 {[%clk 0:02:51]}  dxc4 {[%clk 0:02:52]} 9. Bxc4 {[%clk 0:02:50]}  Bg7 {[%clk 0:02:51]} 10. O-O {[%clk 0:02:49]}  O-O {[%clk 0:02:50]} 11. Qe2 {[%clk 0:02:43]}  Nd7 {[%clk 0:02:45]} 12. Rac1 {[%clk 0:02:43]}  Qe7 {[%clk 0:02:41]} 13. Rfd1 {[%clk 0:02:40]}  b5 {[%clk 0:02:36]} 14. Bd3 {[%clk 0:02:37]}  Bb7 {[%clk 0:02:35]} 15. Ne4 {[%clk 0:02:20]}  e5 {[%clk 0:02:28]} 16. dxe5 {[%clk 0:01:57]}  Rad8 {[%clk 0:02:25]} 17. Bb1 {[%clk 0:01:31]}  Nxe5 {[%clk 0:02:23]} 18. Rxd8 {[%clk 0:01:28]}  Rxd8 {[%clk 0:02:22]} 19. Nxe5 {[%clk 0:01:27]}  Qxe5 {[%clk 0:02:21]} 20. b4 {[%clk 0:01:20]}  Qb2 {[%clk 0:02:00]} 21. Qe1 {[%clk 0:00:56]}  Bc8 {[%clk 0:01:47]} 22. h3 {[%clk 0:00:31]}  Be6 {[%clk 0:01:42]} 23. Rxc6 {[%clk 0:00:23]}  Bc4 {[%clk 0:01:41]} 24. Nd6 {[%clk 0:00:15]}  Bc3 {[%clk 0:01:37]} 25. Qd1 {[%clk 0:00:13]}  Bxb4 {[%clk 0:01:34]} 26. Rc8 {[%clk 0:00:04]}  Rxc8 {[%clk 0:01:23]} 27. Nxc8 {[%clk 0:00:05]}  a5 {[%clk 0:01:20]} 28. h4 {[%clk 0:00:03]}  h5 {[%clk 0:01:17]} 29. g4 {[%clk 0:00:02]}  Be2 {[%clk 0:01:06]} 30. Qd8+ {[%clk 0:00:02]}  Kg7 {[%clk 0:01:06]} 0-1


[Site "https://www.chess.com"]

[Event "Titled Tuesday Blitz May 24 Late 2022"]
[White "Riff, Vincent"]
[Black "Dubov, Daniil"]
[WhiteFideId "617776"]
[BlackFideId "24126055"]
[WhiteElo "2377"]
[BlackElo "2791"]
[Result "0-1"]
[Round "02"]
[TimeControl "180+1"]
[Date "2022.05.24"]
[WhiteClock "0:00:18"]
[BlackClock "0:00:36"]

1. d4 {[%clk 0:03:00]}  Nf6 {[%clk 0:02:58]} 2. Bf4 {[%clk 0:02:58]}  d5 {[%clk 0:02:58]} 3. e3 {[%clk 0:02:58]}  g6 {[%clk 0:02:58]} 4. Nf3 {[%clk 0:02:57]}  Bg7 {[%clk 0:02:59]} 5. Be2 {[%clk 0:02:58]}  O-O {[%clk 0:02:59]} 6. h3 {[%clk 0:02:58]}  c5 {[%clk 0:03:00]} 7. c3 {[%clk 0:02:58]}  Nc6 {[%clk 0:03:00]} 8. O-O {[%clk 0:02:58]}  b6 {[%clk 0:03:01]} 9. Nbd2 {[%clk 0:02:56]}  Bb7 {[%clk 0:03:01]} 10. Ne5 {[%clk 0:02:57]}  Nd7 {[%clk 0:03:00]} 11. Nxd7 {[%clk 0:02:54]}  Qxd7 {[%clk 0:02:59]} 12. Nf3 {[%clk 0:02:53]}  Rfe8 {[%clk 0:02:59]} 13. Bb5 {[%clk 0:02:47]}  a6 {[%clk 0:02:57]} 14. Bxc6 {[%clk 0:02:44]}  Bxc6 {[%clk 0:02:55]} 15. Ne5 {[%clk 0:02:43]}  Qc8 {[%clk 0:02:56]} 16. Nxc6 {[%clk 0:02:37]}  Qxc6 {[%clk 0:02:57]} 17. Qf3 {[%clk 0:02:35]}  b5 {[%clk 0:02:51]} 18. b4 {[%clk 0:02:25]}  cxd4 {[%clk 0:02:37]} 19. cxd4 {[%clk 0:02:23]}  Rac8 {[%clk 0:02:37]} 20. Kh2 {[%clk 0:01:50]}  e6 {[%clk 0:02:35]} 21. Qg3 {[%clk 0:01:49]}  Qd7 {[%clk 0:02:30]} 22. Bd6 {[%clk 0:01:43]}  Rc4 {[%clk 0:02:26]} 23. Bc5 {[%clk 0:01:44]}  e5 {[%clk 0:02:26]} 24. Rad1 {[%clk 0:01:37]}  e4 {[%clk 0:02:24]} 25. Kh1 {[%clk 0:01:33]}  f5 {[%clk 0:02:23]} 26. Ra1 {[%clk 0:01:28]}  Bf6 {[%clk 0:02:14]} 27. a4 {[%clk 0:01:20]}  bxa4 {[%clk 0:02:12]} 28. Qd6 {[%clk 0:01:20]}  Qxd6 {[%clk 0:01:58]} 29. Bxd6 {[%clk 0:01:21]}  Re6 {[%clk 0:01:58]} 30. Bc5 {[%clk 0:01:19]}  f4 {[%clk 0:01:56]} 31. Rxa4 {[%clk 0:01:15]}  fxe3 {[%clk 0:01:51]} 32. fxe3 {[%clk 0:01:16]}  Rc3 {[%clk 0:01:51]} 33. b5 {[%clk 0:01:06]}  axb5 {[%clk 0:01:44]} 34. Ra8+ {[%clk 0:01:05]}  Kg7 {[%clk 0:01:44]} 35. Ra7+ {[%clk 0:00:59]}  Kg8 {[%clk 0:01:39]} 36. Ra8+ {[%clk 0:00:58]}  Kf7 {[%clk 0:01:38]} 37. Ra7+ {[%clk 0:00:58]}  Ke8 {[%clk 0:01:33]} 38. Rxh7 {[%clk 0:00:56]}  Ra6 {[%clk 0:01:29]} 39. Rb1 {[%clk 0:00:49]}  Rxe3 {[%clk 0:01:12]} 40. Rxb5 {[%clk 0:00:48]}  Ra8 {[%clk 0:01:12]} 41. Rbb7 {[%clk 0:00:41]}  Re1+ {[%clk 0:01:09]} 42. Kh2 {[%clk 0:00:41]}  Rf1 {[%clk 0:01:03]} 43. Be7 {[%clk 0:00:34]}  Bxd4 {[%clk 0:00:58]} 44. Bd6 {[%clk 0:00:28]}  Bf6 {[%clk 0:00:55]} 45. Rh6 {[%clk 0:00:25]}  Rd8 {[%clk 0:00:37]} 46. Rxg6 {[%clk 0:00:24]}  Rd7 {[%clk 0:00:37]} 47. Rb8+ {[%clk 0:00:18]}  Kf7 {[%clk 0:00:36]} 0-1


[Site "https://www.chess.com"]

[Event "Titled Tuesday Blitz May 24 Late 2022"]
[White "Roque Sola, Gisela"]
[Black "Barria Zuniga, Daniel"]
[WhiteFideId "5120241"]
[BlackFideId "3400816"]
[WhiteElo "1863"]
[BlackElo "2414"]
[Result "0-1"]
[Round "02"]
[TimeControl "180+1"]
[Date "2022.05.25"]
[WhiteClock "0:02:10"]
[BlackClock "0:02:36"]

1. e4 {[%clk 0:03:00]}  g6 {[%clk 0:02:58]} 2. d4 {[%clk 0:02:59]}  Bg7 {[%clk 0:02:59]} 3. Nf3 {[%clk 0:02:59]}  c5 {[%clk 0:02:59]} 4. Nc3 {[%clk 0:02:56]}  Qa5 {[%clk 0:02:58]} 5. Bd2 {[%clk 0:02:48]}  cxd4 {[%clk 0:02:57]} 6. Nd5 {[%clk 0:02:46]}  Qd8 {[%clk 0:02:57]} 7. Bc4 {[%clk 0:02:42]}  Nc6 {[%clk 0:02:56]} 8. O-O {[%clk 0:02:40]}  e6 {[%clk 0:02:52]} 9. Re1 {[%clk 0:02:27]}  d6 {[%clk 0:02:47]} 10. Nb4 {[%clk 0:02:15]}  Nge7 {[%clk 0:02:43]} 11. Bg5 {[%clk 0:02:10]}  Nxb4 {[%clk 0:02:36]} 0-1


[Site "https://www.chess.com"]

[Event "Titled Tuesday Blitz May 24 Late 2022"]
[White "Rozman, Levy"]
[Black "Kostiukov, Alexandr"]
[WhiteFideId "2039877"]
[BlackFideId "14108100"]
[WhiteElo "2376"]
[BlackElo "2202"]
[Result "0-1"]
[Round "02"]
[TimeControl "180+1"]
[Date "2022.05.25"]
[WhiteClock "0:01:20"]
[BlackClock "0:01:57"]

1. e4 {[%clk 0:03:00]}  c5 {[%clk 0:02:58]} 2. a3 {[%clk 0:02:58]}  g6 {[%clk 0:02:58]} 3. Nc3 {[%clk 0:02:58]}  Bg7 {[%clk 0:02:58]} 4. Bc4 {[%clk 0:02:59]}  e6 {[%clk 0:02:56]} 5. d3 {[%clk 0:02:59]}  Ne7 {[%clk 0:02:56]} 6. Ba2 {[%clk 0:03:00]}  d5 {[%clk 0:02:56]} 7. h4 {[%clk 0:03:00]}  h6 {[%clk 0:02:55]} 8. h5 {[%clk 0:03:00]}  g5 {[%clk 0:02:55]} 9. f4 {[%clk 0:03:00]}  f6 {[%clk 0:02:56]} 10. Nf3 {[%clk 0:02:52]}  Nbc6 {[%clk 0:02:54]} 11. Qe2 {[%clk 0:02:48]}  Nd4 {[%clk 0:02:45]} 12. Qf2 {[%clk 0:02:42]}  Nxf3+ {[%clk 0:02:38]} 13. Qxf3 {[%clk 0:02:43]}  d4 {[%clk 0:02:38]} 14. Ne2 {[%clk 0:02:39]}  O-O {[%clk 0:02:36]} 15. Bd2 {[%clk 0:02:32]}  Kh8 {[%clk 0:02:35]} 16. Qg3 {[%clk 0:02:29]}  e5 {[%clk 0:02:34]} 17. fxg5 {[%clk 0:02:23]}  fxg5 {[%clk 0:02:34]} 18. Ng1 {[%clk 0:02:19]}  Qd6 {[%clk 0:02:29]} 19. Nf3 {[%clk 0:02:19]}  Be6 {[%clk 0:02:29]} 20. Nxg5 {[%clk 0:02:07]}  Bxa2 {[%clk 0:02:24]} 21. Rxa2 {[%clk 0:02:06]}  hxg5 {[%clk 0:02:23]} 22. h6 {[%clk 0:02:02]}  Bf6 {[%clk 0:02:23]} 23. Ke2 {[%clk 0:01:56]}  Qe6 {[%clk 0:02:20]} 24. Raa1 {[%clk 0:01:56]}  Ng6 {[%clk 0:02:20]} 25. Raf1 {[%clk 0:01:54]}  Nf4+ {[%clk 0:02:20]} 26. Kd1 {[%clk 0:01:51]}  Rg8 {[%clk 0:02:18]} 27. Qf3 {[%clk 0:01:48]}  Qa2 {[%clk 0:02:14]} 28. g3 {[%clk 0:01:44]}  g4 {[%clk 0:02:08]} 29. Qf2 {[%clk 0:01:43]}  Qb1+ {[%clk 0:02:07]} 30. Bc1 {[%clk 0:01:43]}  Bg5 {[%clk 0:02:05]} 31. h7 {[%clk 0:01:24]}  Rgf8 {[%clk 0:01:59]} 32. Qd2 {[%clk 0:01:20]}  Nh3 {[%clk 0:01:57]} 0-1


[Site "https://www.chess.com"]

[Event "Titled Tuesday Blitz May 24 Late 2022"]
[White "Rustemov, Alexander"]
[Black "Melikyan, Gnel"]
[WhiteFideId "4119002"]
[BlackFideId "54109990"]
[WhiteElo "2851"]
[BlackElo "1772"]
[Result "1-0"]
[Round "02"]
[TimeControl "180+1"]
[Date "2022.05.24"]
[WhiteClock "0:00:42"]
[BlackClock "0:00:14"]

1. d4 {[%clk 0:03:00]}  Nf6 {[%clk 0:02:59]} 2. c4 {[%clk 0:03:01]}  g6 {[%clk 0:03:00]} 3. Nf3 {[%clk 0:03:01]}  Bg7 {[%clk 0:03:00]} 4. g3 {[%clk 0:03:02]}  O-O {[%clk 0:03:01]} 5. Bg2 {[%clk 0:03:03]}  d6 {[%clk 0:03:01]} 6. Nc3 {[%clk 0:03:03]}  c6 {[%clk 0:03:02]} 7. O-O {[%clk 0:03:03]}  Qb6 {[%clk 0:03:03]} 8. h3 {[%clk 0:03:00]}  Qa6 {[%clk 0:03:02]} 9. Nd2 {[%clk 0:03:00]}  Nbd7 {[%clk 0:02:58]} 10. b3 {[%clk 0:02:54]}  Rb8 {[%clk 0:02:57]} 11. a4 {[%clk 0:02:51]}  Qa5 {[%clk 0:02:40]} 12. Qc2 {[%clk 0:02:47]}  c5 {[%clk 0:02:40]} 13. d5 {[%clk 0:02:45]}  Re8 {[%clk 0:02:30]} 14. e4 {[%clk 0:02:42]}  Nxd5 {[%clk 0:02:28]} 15. exd5 {[%clk 0:02:21]}  Qxc3 {[%clk 0:02:25]} 16. Ra2 {[%clk 0:02:15]}  Qxc2 {[%clk 0:02:23]} 17. Rxc2 {[%clk 0:02:15]}  Nf8 {[%clk 0:02:18]} 18. g4 {[%clk 0:02:11]}  e6 {[%clk 0:02:15]} 19. Ne4 {[%clk 0:02:10]}  Be5 {[%clk 0:02:08]} 20. Bb2 {[%clk 0:02:01]}  Bxb2 {[%clk 0:01:46]} 21. Rxb2 {[%clk 0:02:00]}  Rd8 {[%clk 0:01:45]} 22. Rd2 {[%clk 0:01:48]}  e5 {[%clk 0:01:39]} 23. f4 {[%clk 0:01:47]}  f5 {[%clk 0:01:27]} 24. gxf5 {[%clk 0:01:32]}  gxf5 {[%clk 0:01:27]} 25. Nxd6 {[%clk 0:01:29]}  Rxd6 {[%clk 0:01:25]} 26. fxe5 {[%clk 0:01:29]}  Rg6 {[%clk 0:01:23]} 27. Kh2 {[%clk 0:01:25]}  Rg7 {[%clk 0:01:10]} 28. Rdf2 {[%clk 0:01:25]}  Ng6 {[%clk 0:01:09]} 29. e6 {[%clk 0:01:23]}  Nh4 {[%clk 0:01:03]} 30. Bh1 {[%clk 0:01:23]}  Bxe6 {[%clk 0:00:52]} 31. dxe6 {[%clk 0:01:22]}  Re8 {[%clk 0:00:52]} 32. Rf4 {[%clk 0:01:15]}  Ng6 {[%clk 0:00:39]} 33. Rxf5 {[%clk 0:01:15]}  b6 {[%clk 0:00:39]} 34. Bd5 {[%clk 0:01:13]}  Rge7 {[%clk 0:00:32]} 35. Rf7 {[%clk 0:01:01]}  Rf8 {[%clk 0:00:20]} 36. Kg3 {[%clk 0:00:54]}  Rfxf7 {[%clk 0:00:19]} 37. exf7+ {[%clk 0:00:52]}  Kg7 {[%clk 0:00:18]} 38. h4 {[%clk 0:00:50]}  h5 {[%clk 0:00:17]} 39. Rf5 {[%clk 0:00:49]}  Re3+ {[%clk 0:00:16]} 40. Kf2 {[%clk 0:00:49]}  Rxb3 {[%clk 0:00:15]} 41. Rg5 {[%clk 0:00:49]}  Rb2+ {[%clk 0:00:13]} 42. Ke3 {[%clk 0:00:48]}  Rb3+ {[%clk 0:00:14]} 43. Ke4 {[%clk 0:00:42]} 1-0


[Site "https://www.chess.com"]

[Event "Titled Tuesday Blitz May 24 Late 2022"]
[White "Sargsyan, Anna M."]
[Black "Steinberg, Nitzan"]
[WhiteFideId "13308130"]
[BlackFideId "2801795"]
[WhiteElo "2271"]
[BlackElo "2471"]
[Result "1/2-1/2"]
[Round "02"]
[TimeControl "180+1"]
[Date "2022.05.24"]
[WhiteClock "0:00:06"]
[BlackClock "0:00:13"]

1. d4 {[%clk 0:02:53]}  Nf6 {[%clk 0:02:58]} 2. c4 {[%clk 0:02:53]}  e6 {[%clk 0:02:57]} 3. Nf3 {[%clk 0:02:54]}  b6 {[%clk 0:02:58]} 4. g3 {[%clk 0:02:54]}  Bb7 {[%clk 0:02:58]} 5. Bg2 {[%clk 0:02:54]}  Bb4+ {[%clk 0:02:58]} 6. Nbd2 {[%clk 0:02:53]}  O-O {[%clk 0:02:58]} 7. O-O {[%clk 0:02:53]}  Re8 {[%clk 0:02:57]} 8. Qc2 {[%clk 0:02:50]}  d5 {[%clk 0:02:53]} 9. Ne5 {[%clk 0:02:48]}  c5 {[%clk 0:02:48]} 10. Ndf3 {[%clk 0:02:45]}  cxd4 {[%clk 0:02:46]} 11. Nxd4 {[%clk 0:02:39]}  h6 {[%clk 0:02:37]} 12. Rd1 {[%clk 0:02:38]}  Qe7 {[%clk 0:02:34]} 13. a3 {[%clk 0:02:37]}  Bc5 {[%clk 0:02:32]} 14. b4 {[%clk 0:02:34]}  Bxd4 {[%clk 0:02:32]} 15. Rxd4 {[%clk 0:02:35]}  dxc4 {[%clk 0:02:28]} 16. Bxb7 {[%clk 0:02:30]}  Qxb7 {[%clk 0:02:28]} 17. Qxc4 {[%clk 0:02:30]}  Rc8 {[%clk 0:02:26]} 18. Qb3 {[%clk 0:02:27]}  Nc6 {[%clk 0:02:25]} 19. Nxc6 {[%clk 0:02:25]}  Rxc6 {[%clk 0:02:24]} 20. Bb2 {[%clk 0:02:23]}  Rac8 {[%clk 0:02:20]} 21. Rad1 {[%clk 0:02:23]}  Qe7 {[%clk 0:02:16]} 22. R4d2 {[%clk 0:02:17]}  b5 {[%clk 0:01:59]} 23. f3 {[%clk 0:02:11]}  a6 {[%clk 0:01:58]} 24. e4 {[%clk 0:02:11]}  Rc4 {[%clk 0:01:49]} 25. Qe3 {[%clk 0:02:08]}  e5 {[%clk 0:01:41]} 26. Qb6 {[%clk 0:01:59]}  R4c6 {[%clk 0:01:37]} 27. Qf2 {[%clk 0:01:45]}  Qe6 {[%clk 0:01:36]} 28. Kg2 {[%clk 0:01:19]}  Kh7 {[%clk 0:01:36]} 29. h4 {[%clk 0:01:15]}  Ne8 {[%clk 0:01:29]} 30. Rd5 {[%clk 0:01:11]}  f6 {[%clk 0:01:27]} 31. R1d2 {[%clk 0:01:05]}  Nd6 {[%clk 0:01:27]} 32. Re2 {[%clk 0:00:49]}  Nc4 {[%clk 0:01:25]} 33. Bc1 {[%clk 0:00:48]}  Nb6 {[%clk 0:01:25]} 34. Rc5 {[%clk 0:00:41]}  Na4 {[%clk 0:01:19]} 35. Rxc6 {[%clk 0:00:38]}  Rxc6 {[%clk 0:01:20]} 36. Be3 {[%clk 0:00:35]}  Qb3 {[%clk 0:01:20]} 37. f4 {[%clk 0:00:35]}  Nc3 {[%clk 0:01:16]} 38. Rb2 {[%clk 0:00:30]}  Qc4 {[%clk 0:01:15]} 39. fxe5 {[%clk 0:00:29]}  Qxe4+ {[%clk 0:01:11]} 40. Qf3 {[%clk 0:00:29]}  fxe5 {[%clk 0:01:02]} 41. Qxe4+ {[%clk 0:00:20]}  Nxe4 {[%clk 0:01:03]} 42. Re2 {[%clk 0:00:16]}  Kg6 {[%clk 0:00:55]} 43. Bg1 {[%clk 0:00:12]}  Rc4 {[%clk 0:00:51]} 44. Kf3 {[%clk 0:00:09]}  Nf6 {[%clk 0:00:48]} 45. Rxe5 {[%clk 0:00:09]}  Rc3+ {[%clk 0:00:47]} 46. Re3 {[%clk 0:00:09]}  Rc6 {[%clk 0:00:46]} 47. Rd3 {[%clk 0:00:09]}  Kf5 {[%clk 0:00:45]} 48. Bc5 {[%clk 0:00:09]}  g5 {[%clk 0:00:42]} 49. hxg5 {[%clk 0:00:09]}  hxg5 {[%clk 0:00:43]} 50. Rd8 {[%clk 0:00:09]}  Re6 {[%clk 0:00:42]} 51. g4+ {[%clk 0:00:08]}  Nxg4 {[%clk 0:00:40]} 52. Rd5+ {[%clk 0:00:07]}  Ne5+ {[%clk 0:00:40]} 53. Kg3 {[%clk 0:00:07]}  Rc6 {[%clk 0:00:24]} 54. Bd6 {[%clk 0:00:05]}  Ke6 {[%clk 0:00:21]} 55. Rxe5+ {[%clk 0:00:05]}  Kxd6 {[%clk 0:00:22]} 56. Rxg5 {[%clk 0:00:05]}  Rc3+ {[%clk 0:00:22]} 57. Kf4 {[%clk 0:00:06]}  Rxa3 {[%clk 0:00:23]} 58. Ke4 {[%clk 0:00:07]}  Ra4 {[%clk 0:00:21]} 59. Rg6+ {[%clk 0:00:06]}  Kc7 {[%clk 0:00:19]} 60. Kd5 {[%clk 0:00:07]}  Ra1 {[%clk 0:00:18]} 61. Rg7+ {[%clk 0:00:07]}  Kb6 {[%clk 0:00:17]} 62. Rg6+ {[%clk 0:00:07]}  Kb7 {[%clk 0:00:17]} 63. Rg7+ {[%clk 0:00:08]}  Kc8 {[%clk 0:00:17]} 64. Kc6 {[%clk 0:00:07]}  Kd8 {[%clk 0:00:16]} 65. Rg8+ {[%clk 0:00:06]}  Ke7 {[%clk 0:00:17]} 66. Rg7+ {[%clk 0:00:07]}  Ke6 {[%clk 0:00:17]} 67. Kb6 {[%clk 0:00:06]}  Kd5 {[%clk 0:00:17]} 68. Rg4 {[%clk 0:00:06]}  Ra4 {[%clk 0:00:16]} 69. Rh4 {[%clk 0:00:05]}  Ra1 {[%clk 0:00:13]} 70. Rg4 {[%clk 0:00:05]}  Ke5 {[%clk 0:00:13]} 71. Rh4 {[%clk 0:00:05]}  Kd6 {[%clk 0:00:12]} 72. Rd4+ {[%clk 0:00:05]}  Ke5 {[%clk 0:00:13]} 73. Rh4 {[%clk 0:00:06]}  Kd5 {[%clk 0:00:13]} 74. Rg4 {[%clk 0:00:06]} 1/2-1/2


[Site "https://www.chess.com"]